Cogmind - Beta 16 @@@ ROGUE MODE // 2025.12.01 @ 17:09:35 Player: AngelSpirit Result: Destroyed by G-34 Mercenary with Small Laser Performance ------------- Evolutions (0) 0 Regions Visited (1) 200 Robots Destroyed (10) 50 Value Destroyed (231) 231 Prototype IDs (2) 40 Alien Tech Used (0) 0 Bonus (0) 0 TOTAL SCORE: 521 Bonus ------- None Cogmind --------- Core Integrity 0/250 Matter 259/300 Energy 89/100 System Corruption 0% Temperature Cool (15) Movement Rolling (100) Location -10/Materials Parts ------- > --- POWER (1) -------- (None) > --- PROPULSION (2) --- Compact Wheel > --- UTILITY (2) ------ Small Storage Unit > --- WEAPON (2) ------- Assault Rifle > --- INVENTORY (8) ---- Ion Engine Medium Matter Pod (0) Peak State ------------ > --- POWER ------------ Ion Engine > --- PROPULSION ------- Wheel Wheel > --- UTILITY ---------- Small Storage Unit > --- WEAPON ----------- Assault Rifle Light Assault Rifle > --- INVENTORY -------- (None) [Rating: 6] Favorites ----------- Power Ion Engine Engine Ion Engine Propulsion Wheel Wheel Wheel Utility Small Storage Unit Storage Small Storage Unit Weapon Assault Rifle Ballistic Gun Assault Rifle Build | -11 -10 ------- Run | Yrd Mat Slots Evolved . | . . Power . | . . Propulsion . | . . Utility . | . . Weapon . | . . Parts Attached 9 | 6 3 Power 1 | 1 . Engine 1 | 1 . Core . | . . Reactor . | . . Propulsion 3 | 2 1 Treads . | . . Leg . | . . Wheel 3 | 2 1 Hover . | . . Flight . | . . Utility 1 | 1 . Device . | . . Storage 1 | 1 . Processor . | . . Hackware . | . . Protection . | . . Artifact . | . . Weapon 4 | 2 2 Energy Gun . | . . Energy Cannon . | . . Ballistic Gun 4 | 2 2 Ballistic Cannon . | . . Launcher . | . . Special Weapon . | . . Impact Weapon . | . . Slashing Weapon . | . . Piercing Weapon . | . . Special Melee Weapon . | . . Unidentified Prototypes . | . . Parts Lost 5 | . 5 Power 1 | . 1 Propulsion 2 | . 2 Utility . | . . Weapon 2 | . 2 Highest Loss Streak 4 | . 4 To Critical Strikes . | . . Average Backups 1 | . 2 Power . | . . Propulsion . | . . Utility . | . . Weapon . | . . Tool/Special . | . . Unused Backups 2 | . 2 Power 1 | . 1 Propulsion . | . . Utility 1 | . 1 Weapon . | . . Tool/Special . | . . Average Slot Usage (%) 80 | . 80 Engine 13 | . 13 Wheel 25 | . 25 Storage 14 | . 14 Ballistic Gun 26 | . 26 Peak Build Rating 6 | 6 6 Average Rating 5 | 4 5 On Entrance 3 | . 6 Avg Prop Armor Cover (%) . | . . Naked Turns . | . . Heaviest Build 14 | 13 14 Greatest Support 26 | 20 26 Greatest Overweight (x) 1 | . 1 Average Overweight (x) . | . . Largest Inventory Capacity 8 | 8 8 Average Capacity 7 | 6 8 Most Carried 3 | . 3 Average Carried 1 | . 2 Final Capacity 8 | 8 8 Final Carried 2 | . 2 Class Distribution -------------------- 100% | Mutant Dominant Class ---------------- Mutant | -10/Materials Resources | -11 -10 ----------- Run | Yrd Mat Matter Collected 427 | 236 191 Remotely . | . . Salvage Created 445 | . 445 Parts 21 | . 21 Haulers Intercepted . | . . Recyclers Shooed 3 | . 3 Parts Field Recycled . | . . Retrieved Matter . | . . Parts Self-Destructed . | . . Prevented . | . . Parts Restored . | . . Kills | -11 -10 ------- Run | Yrd Mat Combat Hostiles Destroyed 7 | . 7 Guns 7 | . 7 Classes Destroyed 4 | . 4 Recycler 2 | . 2 Operator 1 | . 1 Swarmer 2 | . 2 Grunt 5 | . 5 Best Kill Streak 4 | . 4 Combat Bots Only 3 | . 3 Max Kills in Single Turn 1 | . 1 Gunslinging . | . . Exploded . | . . Melee . | . . Uniques/NPCs Destroyed . | . . Combat | -11 -10 -------- Run | Yrd Mat Hostile Shots Fired 79 | . 79 Missed 15 | . 15 Hits 64 | . 64 Projectile 64 | . 64 Damage Taken 725 | . 725 Core 259 | . 259 Absorbed by Shields . | . . Core Remaining (%) 100 | 100 . Volleys Fired 37 | . 37 Largest 2 | . 2 Hottest 40 | . 40 Shots Fired 71 | . 71 Gun 71 | . 71 Cannon . | . . Launcher . | . . Special . | . . Kinetic 71 | . 71 Thermal . | . . Explosive . | . . Electromagnetic . | . . Robot Hit Streak 20 | . 20 Robot Miss Streak 3 | . 3 Penetration Max . | . . Secondary Targets 2 | . 2 Max Gunslinging Chain 1 | . 1 Shots Hit Robots 51 | . 51 Core Hits 21 | . 21 Critical Kills . | . . Critical Parts Destroyed . | . . Critical Strikes . | . . Melee Attacks . | . . Impact . | . . Slashing . | . . Piercing . | . . Sneak Attacks . | . . Combat Hostiles . | . . Follow-up Attacks . | . . Damage Inflicted 649 | . 649 Guns 649 | . 649 Cannons . | . . Explosions . | . . Melee . | . . Ramming . | . . Kinetic 649 | . 649 Thermal . | . . Explosive . | . . Electromagnetic . | . . Impact . | . . Slashing . | . . Piercing . | . . Highest Corruption . | . . Average Corruption . | . . Corruption Purged . | . . Corruption Blocked . | . . Overload Shots . | . . Overflow Damage . | . . Projectiles . | . . Explosions . | . . Melee . | . . Knockbacks . | . . Impact . | . . Kinetic . | . . Secondary . | . . Self-Inflicted Damage . | . . Shots . | . . Rammed . | . . Targets Rammed . | . . Kicked . | . . Crushed . | . . Highest Temperature 12 | . 12 Average Temperature 5 | . 5 Received Heat Transfer 336 | . 336 Siege Activations . | . . Martial Activations . | . . Shielding Activations . | . . Robots Disrupted . | . . Combat Hostiles . | . . Robots Corrupted . | . . Combat Hostiles . | . . Parts Fried . | . . Impact Corruptions . | . . Robots Melted . | . . Combat Hostiles . | . . Parts Melted . | . . Heat Transferred . | . . Parts Sabotaged . | . . Parts Stolen . | . . Parts Stripped . | . . Power Chain Reactions . | . . Alert | -11 -10 ------- Run | Yrd Mat Maximum Alert Level . | . . Low Security (%) 100 | 100 100 Level 1 . | . . Level 2 . | . . Level 3 . | . . Level 4 . | . . Level 5 . | . . High Security . | . . Max Security . | . . Peak Influence 80 | . 80 Initial . | . . Average 21 | . 25 Influence Increases 205 | . 205 Destroy 0b10 Robot/C 140 | . 140 Destroy 0b10 Robot/NC 15 | . 15 Destroy Leader 40 | . 40 Successful Hack 10 | . 10 Influence Decreases 145 | . 145 Time Decay 105 | . 105 Lost Part 40 | . 40 Squads Dispatched 2 | . 2 Investigation 1 | . 1 Extermination . | . . Reinforcement 1 | . 1 Assault . | . . Garrison . | . . Intercept . | . . Searches Triggered . | . . Construction Impeded . | . . Haulers Reinforced . | . . Active Scanning Responses . | . . Cargo Convoy Interrupts . | . . Stealth | -11 -10 --------- Run | Yrd Mat Distress Signals . | . . Communications Jammed . | . . Distress Signals . | . . Times Spotted 14 | . 14 Peak Tracking Total 10 | . 10 Tactical Retreats . | . . Traps | -11 -10 ------- Run | Yrd Mat Traps Triggered 1 | . 1 Indirectly . | . . Trap Hack Attempts . | . . Triggered . | . . Disarmed . | . . Reprogrammed . | . . Reused . | . . Traps Extracted . | . . Installed . | . . Triggered . | . . Machines | -11 -10 ---------- Run | Yrd Mat Machines Disabled . | . . Max in Single Turn . | . . Machines Repaired . | . . Machines Dismantled . | . . Machines Sabotaged . | . . Overloaded Fab Kills . | . . Hacking | -11 -10 --------- Run | Yrd Mat Machines Accessed 3 | . 3 Terminals 2 | . 2 Fabricators . | . . Repair Stations . | . . Recycling Units 1 | . 1 Scanalyzers . | . . Garrison Access . | . . Total Hacks 7 | . 7 Successful 4 | . 4 Failed 3 | . 3 Catastrophic . | . . Database Lockouts . | . . Manual 4 | . 4 Terminals 6 | . 6 Fabricators . | . . Repair Stations . | . . Recycling Units 1 | . 1 Scanalyzers . | . . Garrison Access . | . . Terminal Hacks 2 | . 2 Prototype ID Bank 1 | . 1 Zone Layout 1 | . 1 Fabricator Hacks . | . . Repair Station Hacks . | . . Recycling Unit Hacks 1 | . 1 Report Inventory 1 | . 1 Scanalyzer . | . . Garrison Access Hacks . | . . Unauthorized Hacks 1 | . 1 Terminals 1 | . 1 Botnet 1 | . 1 Fabricators . | . . Repair Stations . | . . Recycling Units . | . . Scanalyzers . | . . Garrison Access . | . . Data Cores Recovered . | . . Used . | . . Hacking Detections 2 | . 2 Full Trace Events . | . . Feedback Events . | . . Feedback Blocked . | . . Robot Schematics Acquired . | . . Robots Built . | . . Authchips . | . . Time . | . . Total Robot Build Rating . | . . Part Schematics Acquired . | . . Parts Built . | . . Authchips . | . . Time . | . . Total Part Build Rating . | . . Part Studies Acquired . | . . Parts Repaired . | . . Time . | . . Parts Recycled . | . . Recycled Matter . | . . Retrieved Matter . | . . Retrieved Components . | . . Parts Scanalyzed . | . . Part Schematics Acquired . | . . Parts Damaged . | . . Bothacking | -11 -10 ------------ Run | Yrd Mat Used RIF Installer . | . . Robots Hacked . | . . Non-combat . | . . Combat . | . . Robot Hacks Applied . | . . Relay Couplers Released . | . . Fabnet Peak Effective % . | . . Robots Rewired . | . . Allies Hacked . | . . Hacks Repelled . | . . Allies | -11 -10 -------- Run | Yrd Mat Total Allies . | . . Largest Group . | . . Highest-Rated Group . | . . Highest-Rated Ally . | . . Total Orders . | . . Ally Attacks . | . . Total Damage . | . . Kills . | . . Allies Corrupted . | . . Allies Melted . | . . Intel | -11 -10 ------- Run | Yrd Mat Active Infowar (turns) . | . . Robot Analysis Total . | . . Derelict Logs Recovered . | . . Drone Launches . | . . Drone Recoveries . | . . Exploration | -11 -10 ------------- Run | Yrd Mat Turns Passed 271 | 38 233 Spaces Moved 174 | 39 135 Core 6 | 6 . Treads . | . . Legs . | . . Wheels 168 | 33 135 Hover . | . . Flight . | . . Fastest Speed 50 | 50 80 Average Speed 81 | 75 82 Slowest Speed 95 | 80 95 Overloaded Moves . | . . Propulsion Burnouts . | . . Robots Hopped . | . . Potential Cave-ins . | . . Cave-ins Triggered . | . . Exploration Rate (%) 16 | 3 29 Regions Visited 1 Branch Regions . Pre-discovered Areas . | . . Known Exits Taken . | . . Unknown Exits Taken 1 | 1 . Scrap Searched . | . . Spaces Dug . | . . Terrain Destroyed . | . . Melee . | . . Projectile . | . . AOE . | . . Terrain Rammed . | . . Walls Destroyed . | . . Machines Disabled . | . . Actions | -11 -10 --------- Run | Yrd Mat Total 231 | 44 187 Wait 7 | . 7 Move 173 | 38 135 Hop . | . . Pick Up 3 | . 3 Fast Attach 7 | 6 1 Attach 2 | . 2 Detach . | . . Swap 1 | . 1 Drop 1 | . 1 Fire 37 | . 37 Melee . | . . Ram . | . . Kick . | . . Crush . | . . Escape Stasis . | . . Rewire . | . . Trap . | . . Miscellaneous . | . . Route ------- -11/Scrapyard -10/Materials (discovered 3 exits: [*Mat x2] / [*Min]) History --------- Turn | Location | Event 4 | -11/Scrapyard | Discovered new exit (range 16) 39 | -11/Scrapyard | Entered Materials 84 | -10/Materials | Discovered new exit (range 15) 133 | -10/Materials | Discovered new exit (range 8) 238 | -10/Materials | Discovered new exit (range 15) 254 | -10/Materials | Core integrity fell below 50% 269 | -10/Materials | Core integrity fell below 20% 272 | -10/Materials | Destroyed by G-34 Mercenary with Small Laser Last Messages --------------- investigation squad. 00243_ Connecting with Terminal... >>Layout(Zone) Retrieving Zone 8L layout... Downloaded map data. >>Trojan(Botnet) Trojan loaded successfully. Testing... Terminal linked with 0 systems. Awaiting botnet instructions. >>Prototypes Downloading prototype IDs... Cld. Ion Engine Imp. Medium Laser 00251_ S-10 Pest destroyed. 00262_ Ion Engine destroyed. 00266_ Assault Rifle destroyed. 00266_ G-34 Mercenary destroyed. 00266_ Wheel destroyed. 00268_ Assault Rifle destroyed. Map ----- +----------------------------------------------------+ | ?????????????????????????????????????????????????? | | ?????????????????????????????????????????????????? | | ?????????????????????????????????????????????????? | | ?????????????????????????????????????????????????? | | ?????????????????????????????????????????????????? | | ?????????????????????????????????????????????????? | | ?????????????????????????????????????????????????? | | ?????? ##################??????????????????? | | ??????#####+## ## # #??????????????????? | | ?????? ##""" # < #??????????????????? | | ?????? ##""" # #??????????????????? | | ??????#+###### ##""" + #?????#????????????? | | ?????? ## ## # #?????#????????????? | | ?????? ## ## # #?????#????????????? | | ?????? ## ######### ##????#????????????? | | ?????? """ # ####### ######????????????? | | ?????? """ # T" ????????????? | | ?????? """ + " " ????????????? | | ?????? # ## #????????????? | | ?????? """ # ####### ## #????????????? | | ?????? """ ## ######### ### #????????????? | | ?????? """ ## # """ # #?# #????????????? | | ?????? ## # "T"gg=# #?# #????????????? | | ??????######### # =%s%+ #?# #????????????? | | ??????????????# # gg# #?# #????????????? | | ??????######### # =@# #?# #????????????? | | ?????? ######### #?# #????????????? | | ?????? ######+#####????## ##?# #????????????? | | ?????? #?# #?????# #??# #????????????? | | ?????? #?# """ #?????# #??# #????????????? | | ??????#####?# """ #?#####+#### #????????????? | | ????????????# """ #?# # #????????????? | | ????????????# #?# # #????????????? | | ????????????# #?# # #????????????? | | ???########?# #?# # #????????????? | | ???# #?# #?# + #????????????? | | ???# #?# #?# # #????????????? | | ???# #?##########?# # #????????????? | | ???# = #????????????# # #????????????? | | #??# #????????????# # #????????????? | | #??# #??????################ ########?????? | | #??####+########## = [ #?????? | | #??# !! =%* #?????? | | #??# < !! %##########[ #?????? | | #??# #????????######## #?????? | | #??###### ! [ #????????????????? #?????? | | #???????# *[%==[ #?????????????????? #?????? | | ######### !*![=[ #?????????#####?????#?????? | | # %=[ #######+## ???????????? | | # ??????????? | +----------------------------------------------------+ Best States ------------- Heat Dissipation 25 Energy Generation 10 Energy Capacity 250 Matter Stores 300 Matter Capacity 300 Sight Range 16 Terrain Scan Density 10 Evasion (%) 44 Item Schematics ----------------- None Robot Schematics ------------------ None Fabricated ------------ Nothing Repaired ---------- Nothing Studied --------- None Alien Tech Used ----------------- None Achievements -------------- None Challenges ------------ None Game ------ Seed DeliveryMiningChainsaw Manual? 0 Play Time 00:04:17 Cumulative 138.7 hours Start 2025.12.01 @ 17:07:17 End 2025.12.01 @ 17:09:35 Sessions 1 Manual Loads 0 Difficulty Rogue Special Mode None Game No. 75 Rogue 75 Adventurer 0 Explorer 0 Win Type - Total 1 Types 1/0/0/0/0/0/0/0/0/0 Lore% 63 Gallery% 60 Achievement% 48 Wizard Run 0 Options --------- Layout 1 ASCII 0 Keyboard 0 Movement Mouse Keybinds 0 Fullscreen 2 Font 32/SmallcapsGlow Map View 50x35 Zoom Use 0% Tactical HUD 1 Map Filters NONE Filters NONE Steam 1 RUN: e3a8beb7-09e0-4a3d-8427-fb6ef784eb26